fUSD/lending_fUSD_20240726
["ID","MTS","AMOUNT","RATE_DAILY","PERIOD"]
[333243376,1721974233063,-500.0,0.0001,2]
[333243377,1721974233072,-500.0,0.0001,2]
[333243378,1721974233082,-500.0,0.0001,2]
[333243379,1721974233091,-500.0,0.0001,2]
[333243380,1721974233101,-500.0,0.0001,2]
[333243381,1721974233110,-500.0,0.0001,2]
[333243382,1721974233120,-500.0,0.0001,2]
[333243383,1721974233129,-261.37381456,0.0001,2]
[333243384,1721974233141,-238.62618544,0.0001,2]
[333243385,1721974233151,-500.0,0.0001,2]
[333243386,1721974233161,-500.0,0.0001,2]
[333243387,1721974233171,-500.0,0.0001,2]
[333243388,1721974233181,-217.7497481,0.0001,2]
[333243389,1721974233194,-282.2502519,0.0001,2]
[333243390,1721974233208,-500.0,0.0001,2]
[333243391,1721974233217,-88.60352821,0.0001,2]
[333243392,1721974233240,-411.39647179,0.0001,2]
[333243393,1721974233251,-500.0,0.0001,2]
[333243394,1721974233261,-252.09056813,0.0001,2]
[333243395,1721974233272,-247.90943187,0.0001,2]
[333243397,1721974233283,-500.0,0.0001,2]
[333243399,1721974233293,-500.0,0.0001,2]
[333243401,1721974233302,-500.0,0.0001,2]
[333243402,1721974233312,-500.0,0.0001,2]
[333243404,1721974233321,-500.0,0.0001,2]
[333243406,1721974233332,-500.0,0.0001,2]
[333243408,1721974233341,-500.0,0.0001,2]
[333243410,1721974233351,-321.06992411,0.0001,2]
[333243412,1721974233363,-178.93007589,0.0001,2]
[333243413,1721974233372,-500.0,0.0001,2]
[333243415,1721974233382,-500.0,0.0001,2]
[333243417,1721974233393,-500.0,0.0001,2]
[333243420,1721974233403,-500.0,0.0001,2]
[333243423,1721974233412,-500.0,0.0001,2]
[333243425,1721974233422,-500.0,0.0001,2]
[333243428,1721974233432,-500.0,0.0001,2]
[333243431,1721974233442,-500.0,0.0001,2]
[333243434,1721974233452,-500.0,0.0001,2]
[333243437,1721974233461,-453.22683908,0.0001,2]
[333243440,1721974233473,-46.77316092,0.0001,2]
[333243443,1721974233482,-318.57894514,0.0001,2]
[333243446,1721974233494,-181.42105486,0.0001,2]
[333243449,1721974233503,-500.0,0.0001,2]
[333243451,1721974233513,-500.0,0.0001,2]
[333243454,1721974233522,-500.0,0.0001,2]
[333243457,1721974233531,-500.0,0.0001,2]
[333243460,1721974233542,-500.0,0.0001,2]
[333243463,1721974233551,-500.0,0.0001,2]
[333243465,1721974233560,-500.0,0.0001,2]
[333243467,1721974233570,-500.0,0.0001,2]
[333243469,1721974233580,-500.0,0.0001,2]
[333243470,1721974233589,-500.0,0.0001,2]
[333243472,1721974233599,-500.0,0.0001,2]
[333243474,1721974233608,-500.0,0.0001,2]
[333243476,1721974233617,-500.0,0.0001,2]
[333243478,1721974233626,-500.0,0.0001,2]
[333243480,1721974233635,-500.0,0.0001,2]
[333243481,1721974233646,-206.13054222,0.0001,2]
[333243483,1721974233657,-293.86945778,0.0001,2]
[333243485,1721974233667,-500.0,0.0001,2]
[333243487,1721974233676,-500.0,0.0001,2]
[333243489,1721974233685,-500.0,0.0001,2]
[333243491,1721974233695,-500.0,0.0001,2]
[333243493,1721974233704,-500.0,0.0001,2]
[333243495,1721974233714,-500.0,0.0001,2]
[333243496,1721974233724,-500.0,0.0001,2]
[333243498,1721974233733,-500.0,0.0001,2]
[333243500,1721974233743,-500.0,0.0001,2]
[333243502,1721974233753,-500.0,0.0001,2]
[333243504,1721974233763,-146.09054222,0.0001,2]
[333243506,1721974233774,-353.90945778,0.0001,2]
[333243508,1721974233784,-189.92073486,0.0001,2]
[333243510,1721974233795,-310.07926514,0.0001,2]
[333243512,1721974233804,-173.3147769,0.0001,2]
[333243514,1721974233824,-326.6852231,0.0001,2]
[333243516,1721974233834,-500.0,0.0001,2]
[333243518,1721974233843,-500.0,0.0001,2]
[333243520,1721974233853,-500.0,0.0001,2]
[333243522,1721974233863,-500.0,0.0001,2]
[333243524,1721974233873,-500.0,0.0001,2]
[333243526,1721974233882,-500.0,0.0001,2]
[333243527,1721974233892,-500.0,0.0001,2]
[333243529,1721974233902,-189.91046097,0.0001,2]
[333243531,1721974233914,-310.08953903,0.0001,2]
[333243533,1721974233923,-500.0,0.0001,2]
[333243535,1721974233933,-500.0,0.0001,2]
[333243537,1721974233943,-500.0,0.0001,2]
[333243539,1721974233952,-500.0,0.0001,2]
[333243541,1721974233962,-500.0,0.0001,2]
[333243542,1721974233972,-500.0,0.0001,2]
[333243544,1721974233981,-500.0,0.0001,2]
[333243546,1721974233991,-500.0,0.0001,2]
[333243547,1721974234001,-315.85,0.0001,2]
[333243549,1721974234010,-500.0,0.0001,2]
[333243551,1721974234021,-500.0,0.0001,2]
[333243552,1721974234032,-61.25200744,0.0001,2]
[333243554,1721974234044,-438.74799256,0.0001,2]
[333243556,1721974234054,-500.0,0.0001,2]
[333243558,1721974234063,-500.0,0.0001,2]
[333243560,1721974234073,-500.0,0.0001,2]
[333243562,1721974234083,-500.0,0.0001,2]
[333243564,1721974234093,-500.0,0.0001,2]
[333243566,1721974234103,-500.0,0.0001,2]
[333243568,1721974234112,-500.0,0.0001,2]
[333243570,1721974234122,-500.0,0.0001,2]
[333243571,1721974234131,-500.0,0.0001,2]
[333243573,1721974234141,-500.0,0.0001,2]
[333243575,1721974234153,-500.0,0.0001,2]
[333243577,1721974234163,-500.0,0.0001,2]
[333243579,1721974234172,-500.0,0.0001,2]
[333243581,1721974234181,-500.0,0.0001,2]
[333243583,1721974234191,-500.0,0.0001,2]
[333243584,1721974234203,-500.0,0.0001,2]
[333243586,1721974234212,-500.0,0.0001,2]
[333243588,1721974234221,-500.0,0.0001,2]
[333243589,1721974234231,-500.0,0.0001,2]
[333243590,1721974234241,-500.0,0.0001,2]
[333243591,1721974234251,-412.25,0.0001,2]
[333243592,1721974234260,-402.40376542,0.0001,2]
[333243634,1721974237734,-97.59623458,0.0001,2]
[333243637,1721974237744,-500.0,0.0001,2]
[333243640,1721974237753,-500.0,0.0001,2]
[333243641,1721974237762,-500.0,0.0001,2]
[333243644,1721974237771,-500.0,0.0001,2]
[333243647,1721974237780,-500.0,0.0001,2]
[333243649,1721974237789,-500.0,0.0001,2]
[333243650,1721974237798,-583.34,0.0001,2]
[333243651,1721974237807,-500.0,0.0001,2]
[333243652,1721974237816,-500.0,0.0001,2]
[333243653,1721974237825,-500.0,0.0001,2]
[333243654,1721974237834,-500.0,0.0001,2]
[333243655,1721974237844,-500.0,0.0001,2]
[333243656,1721974237854,-500.0,0.0001,2]
[333243657,1721974237863,-151.94,0.0001,2]
[333243658,1721974237872,-85.18913242,0.00010118,2]
[333243659,1721974237883,-80.69086758,0.00010118,2]
[333243660,1721974237893,-499.99,0.00010118,2]
[333243661,1721974237902,-1007.07,0.00010118,2]
[333243662,1721974237911,-425.61,0.000102,2]
[333243663,1721974237920,-701.57,0.000102,2]
[333243664,1721974237929,-452.93,0.000102,2]
[333243665,1721974237939,-512.37,0.000102,2]
[333243666,1721974237948,-425.61,0.00010378,2]
[333243667,1721974237957,-150.0,0.00010378,2]
[333243668,1721974237967,-355.9,0.00010378,2]
[333243669,1721974237976,-355.9,0.00010378,2]
[333243670,1721974237985,-1971.33696668,0.0001045,2]
[333243671,1721974237994,-276.95,0.00010468,2]
[333243672,1721974238003,-526.02,0.00010471,2]
[333243673,1721974238016,-425.61,0.00010478,2]
[333243674,1721974238025,-165.35,0.00010478,2]
[333243675,1721974238034,-355.9,0.00010478,2]
[333243676,1721974238043,-150.0,0.00010478,2]
[333243677,1721974238054,-420.0,0.0001068,2]
[333243678,1721974238064,-194.473082,0.0001078,2]
[333243679,1721974238073,-500.0,0.00010813,2]
[333243680,1721974238082,-200.0,0.00010846,2]
[333243681,1721974238091,-263.8874,0.00010858,2]
[333243682,1721974238102,-1000.0,0.00010858,2]
[333243683,1721974238112,-2500.0,0.00010858,2]
[333243684,1721974238123,-276.95,0.0001089,2]
[333243685,1721974238134,-276.95,0.0001089,2]
[333243686,1721974238144,-276.95,0.0001089,2]
[333243687,1721974238154,-276.95,0.0001089,2]
[333243688,1721974238163,-1978.43468445,0.000109,2]
[333243689,1721974238175,-7488.22927457,0.000109,2]
[333243690,1721974238187,-32004.00710092,0.000109,2]
[333243691,1721974238197,-1000.0,0.000109,2]
[333243692,1721974238210,-10000.0,0.000109,2]
[333243693,1721974238220,-889.00829735,0.000109,2]
[333243694,1721974238229,-265.01109065,0.000109,2]
[333243695,1721974238239,-14797.78306752,0.000109,2]
[333243696,1721974238249,-276.95,0.00010948,2]
[333243697,1721974238258,-276.95,0.00010948,2]
[333243698,1721974238268,-500.0,0.00010958,2]
[333243699,1721974238278,-500.0,0.00010958,2]
[333243700,1721974238288,-500.0,0.00010958,2]
[333243701,1721974238297,-500.0,0.00010958,2]
[333243702,1721974238307,-325.13919765,0.00010958,2]
[333243703,1721974238316,-500.0,0.00010958,2]
[333243704,1721974238326,-500.0,0.00010958,2]
[333243705,1721974238336,-500.0,0.00010958,2]
[333243706,1721974238345,-505.09119066,0.00010958,2]
[333243707,1721974238355,-500.0,0.00010958,2]
[333243708,1721974238365,-503.42096774,0.00010958,2]
[333243709,1721974238375,-500.0,0.00010958,2]
[333243710,1721974238384,-505.58172011,0.00010958,2]
[333243711,1721974238396,-500.0,0.00010958,2]
[333243712,1721974238406,-500.0,0.00010958,2]
[333243713,1721974238415,-500.0,0.00010958,2]
[333243714,1721974238429,-503.12564217,0.00010958,2]
[333243715,1721974238439,-500.0,0.00010958,2]
[333243716,1721974238449,-500.0,0.00010958,2]
[333243717,1721974238459,-500.0,0.00010958,2]
[333243718,1721974238468,-645.45769659,0.00010958,2]
[333243719,1721974238478,-500.0,0.00010958,2]
[333243720,1721974238489,-500.0,0.00010958,2]
[333243721,1721974238499,-500.0,0.00010958,2]
[333243722,1721974238508,-500.0,0.00010958,2]
[333243723,1721974238518,-301.59480885,0.00010958,2]
[333243724,1721974238528,-300.0,0.00010958,2]
[333243725,1721974238538,-300.0,0.00010958,2]
[333243726,1721974238548,-500.0,0.00010958,2]
[333243727,1721974238558,-500.0,0.00010958,2]
[333243728,1721974238569,-500.0,0.00010958,2]
[333243729,1721974238580,-500.0,0.00010958,2]
[333243730,1721974238590,-500.0,0.00010958,2]
[333243731,1721974238601,-344.76126741,0.00010958,2]
[333243732,1721974238610,-500.0,0.00010958,2]
[333243733,1721974238620,-166.98648658,0.00010958,2]
[333243734,1721974238630,-502.42759121,0.00010958,2]
[333243735,1721974238641,-500.0,0.00010958,2]
[333243736,1721974238652,-500.0,0.00010958,2]
[333243737,1721974238662,-500.0,0.00010958,2]
[333243738,1721974238671,-508.52220784,0.00010958,2]
[333243739,1721974238681,-507.97576515,0.00010958,2]
[333243740,1721974238692,-500.0,0.00010958,2]
[333243741,1721974238701,-513.02039717,0.00010958,2]
[333243742,1721974238711,-500.0,0.00010958,2]
[333243743,1721974238721,-500.0,0.00010958,2]
[333243744,1721974238731,-611.89977552,0.00010958,2]
[333243745,1721974238740,-503.58147894,0.00010958,2]
[333243746,1721974238750,-500.0,0.00010958,2]
[333243747,1721974238759,-500.0,0.00010958,2]
[333243748,1721974238769,-500.0,0.00010958,2]
[333243749,1721974238779,-500.0,0.00010958,2]
[333243750,1721974238788,-500.0,0.00010958,2]
[333243751,1721974238799,-500.0,0.00010958,2]
[333243752,1721974238809,-500.0,0.00010958,2]
[333243753,1721974238819,-500.0,0.00010958,2]
[333243754,1721974238829,-500.0,0.00010958,2]
[333243755,1721974238839,-500.0,0.00010958,2]
[333243756,1721974238848,-500.0,0.00010958,2]
[333243757,1721974238858,-500.0,0.00010958,2]
[333243758,1721974238868,-500.0,0.00010958,2]
[333243759,1721974238878,-500.0,0.00010958,2]
[333243760,1721974238887,-500.0,0.00010958,2]
[333243761,1721974238899,-500.0,0.00010958,2]
[333243762,1721974238909,-500.0,0.00010958,2]
[333243763,1721974238918,-500.0,0.00010958,2]
[333243764,1721974238928,-247.64127575,0.00010958,2]
[333243765,1721974238938,-500.0,0.00010958,2]
[333243766,1721974238948,-500.0,0.00010958,2]
[333243767,1721974238957,-500.0,0.00010958,2]
[333243768,1721974238966,-500.0,0.00010958,2]
[333243769,1721974238975,-544.00620839,0.00010958,2]
[333243770,1721974238984,-586.13322353,0.00010958,2]
[333243771,1721974238994,-500.0,0.00010958,2]
[333243772,1721974239003,-500.0,0.00010958,2]
[333243773,1721974239013,-500.0,0.00010958,2]
[333243774,1721974239022,-500.0,0.00010958,2]
[333243775,1721974239032,-262.08284546,0.00010958,2]
[333243776,1721974239041,-341.66428822,0.00010958,2]
[333243777,1721974239051,-208.36938005,0.00010958,2]
[333243778,1721974239060,-139.61997021,0.00010958,2]
[333243779,1721974239353,-360.38002979,0.00010958,2]
[333243780,1721974239362,-75.79984605,0.00010958,2]
[333243781,1721974239374,-343.85707999,0.00010958,2]
[333243782,1721974239385,-80.34307396,0.00010958,2]
[333243783,1721974239397,-500.0,0.00010958,2]
[333243784,1721974239407,-500.0,0.00010958,2]
[333243785,1721974239416,-500.0,0.00010958,2]
[333243786,1721974239426,-500.0,0.00010958,2]
[333243787,1721974239435,-500.0,0.00010958,2]
[333243788,1721974239445,-500.0,0.00010958,2]
[333243789,1721974239454,-500.0,0.00010958,2]
[333243790,1721974239463,-500.0,0.00010958,2]
[333243791,1721974239473,-576.75,0.00010958,2]
[333243792,1721974239482,-576.75,0.00010958,2]
[333243793,1721974239492,-500.0,0.00010958,2]
[333243794,1721974239501,-500.0,0.00010958,2]
[333243795,1721974239511,-500.0,0.00010958,2]
[333243796,1721974239520,-500.0,0.00010958,2]
[333243797,1721974239530,-500.0,0.00010958,2]
[333243798,1721974239539,-500.0,0.00010958,2]
[333243799,1721974239548,-500.0,0.00010958,2]
[333243800,1721974239558,-500.0,0.00010958,2]
[333243801,1721974239567,-500.0,0.00010958,2]
[333243802,1721974239577,-500.0,0.00010958,2]
[333243803,1721974239586,-500.0,0.00010958,2]
[333243804,1721974239595,-506.57963534,0.00010958,2]
[333243805,1721974239605,-500.0,0.00010958,2]
[333243806,1721974239615,-500.0,0.00010958,2]
[333243807,1721974239624,-346.69152238,0.00010958,2]
[333243808,1721974239634,-551.2,0.00010958,2]
[333243809,1721974239644,-500.0,0.00010958,2]
[333243810,1721974239654,-500.0,0.00010958,2]
[333243811,1721974239663,-500.0,0.00010958,2]
[333243812,1721974239673,-500.0,0.00010958,2]
[333243813,1721974239682,-500.0,0.00010958,2]
[333243814,1721974239692,-500.0,0.00010958,2]
[333243815,1721974239701,-500.0,0.00010958,2]
[333243816,1721974239710,-500.0,0.00010958,2]
[333243817,1721974239720,-500.0,0.00010958,2]
[333243818,1721974239729,-500.0,0.00010958,2]
[333243819,1721974239738,-500.0,0.00010958,2]
[333243820,1721974239747,-500.0,0.00010958,2]
[333243821,1721974239757,-1534.86,0.00010958,2]
[333243822,1721974239767,-500.0,0.00010958,2]
[333243823,1721974239776,-500.0,0.00010958,2]
[333243824,1721974239785,-500.0,0.00010958,2]
[333243825,1721974239795,-500.0,0.00010958,2]
[333243826,1721974239804,-500.0,0.00010958,2]
[333243827,1721974239814,-500.0,0.00010958,2]
[333243828,1721974239823,-500.0,0.00010958,2]
[333243829,1721974239832,-500.0,0.00010958,2]
[333243830,1721974239841,-500.0,0.00010958,2]
[333243831,1721974239852,-500.0,0.00010958,2]
[333243832,1721974239862,-500.0,0.00010958,2]
[333243833,1721974239871,-500.0,0.00010958,2]
[333243834,1721974239881,-500.0,0.00010958,2]
[333243835,1721974239891,-500.0,0.00010958,2]
[333243836,1721974239900,-500.0,0.00010958,2]
[333243837,1721974239909,-500.0,0.00010958,2]
[333243838,1721974239919,-500.0,0.00010958,2]
[333243839,1721974239928,-387.33948785,0.00010958,2]
[333243840,1721974239937,-179.60628057,0.00010958,2]
[333243841,1721974239950,-320.39371943,0.00010958,2]
[333243842,1721974239960,-500.0,0.00010958,2]
[333243843,1721974239969,-359.37465629,0.00010958,2]
[333243844,1721974239980,-140.62534371,0.00010958,2]
[333243845,1721974239990,-500.0,0.00010958,2]
[333243846,1721974239999,-154.64286179,0.00010958,2]
[333243847,1721974240216,-345.35713821,0.00010958,2]
[333243848,1721974240226,-500.0,0.00010958,2]
[333243849,1721974240235,-162.02583617,0.00010958,2]
[333243850,1721974240248,-337.97416383,0.00010958,2]
[333243851,1721974240257,-500.0,0.00010958,2]
[333243852,1721974240267,-118.91612438,0.00010958,2]
[333243853,1721974240287,-381.08387562,0.00010958,2]
[333243854,1721974240296,-12.68753829,0.00010958,2]
[333243855,1721974240316,-487.31246171,0.00010958,2]
[333243856,1721974240325,-188.23567641,0.00010958,2]
[333243857,1721974240433,-311.76432359,0.00010958,2]
[333243858,1721974240443,-500.0,0.00010958,2]
[333243859,1721974240453,-500.0,0.00010958,2]
[333243860,1721974240463,-500.0,0.00010958,2]
[333243861,1721974240473,-19.32607184,0.00010958,2]
[333243862,1721974240485,-480.67392816,0.00010958,2]
[333243863,1721974240495,-500.0,0.00010958,2]
[333243864,1721974240504,-343.05209126,0.00010958,2]
[333243865,1721974240516,-156.94790874,0.00010958,2]
[333243866,1721974240525,-500.0,0.00010958,2]
[333243867,1721974240535,-500.0,0.00010958,2]
[333243868,1721974240545,-500.0,0.00010958,2]
[333243869,1721974240554,-37.96229841,0.00010958,2]
[333243870,1721974240566,-462.03770159,0.00010958,2]
[333243871,1721974240576,-500.0,0.00010958,2]
[333243872,1721974240586,-500.0,0.00010958,2]
[333243873,1721974240596,-500.0,0.00010958,2]
[333243874,1721974240605,-1078.18154963,0.00010958,2]
[333243875,1721974240617,-871.04087,0.00010958,2]
[333243876,1721974240629,-676.73124494,0.00010958,2]
[333243877,1721974240641,-1722.98633543,0.00010958,2]
[333243878,1721974240651,-3202.40816953,0.00010958,2]
[333243879,1721974240662,-1146.53183047,0.00010958,2]
[333243880,1721974240672,-500.0,0.00010958,2]
[333243881,1721974240681,-500.0,0.00010958,2]
[333243882,1721974240691,-500.0,0.00010958,2]
[333243883,1721974240700,-500.0,0.00010958,2]
[333243884,1721974240710,-500.0,0.00010958,2]
[333243885,1721974240719,-500.0,0.00010958,2]
[333243886,1721974240729,-500.0,0.00010958,2]
[333243887,1721974240738,-500.0,0.00010958,2]
[333243888,1721974240748,-194.95512854,0.00010958,2]
[333243889,1721974240757,-500.0,0.00010958,2]
[333243890,1721974240767,-500.0,0.00010958,2]
[333243891,1721974240777,-500.0,0.00010958,2]
[333243892,1721974240786,-500.0,0.00010958,2]
[333243893,1721974240796,-500.0,0.00010958,2]
[333243894,1721974240806,-500.0,0.00010958,2]
[333243895,1721974240815,-500.0,0.00010958,2]
[333243896,1721974240825,-216.96020312,0.00010958,2]
[333243897,1721974240835,-500.0,0.00010958,2]
[333243898,1721974240845,-500.0,0.00010958,2]
[333243899,1721974240855,-500.0,0.00010958,2]
[333243900,1721974240864,-500.0,0.00010958,2]
[333243901,1721974240874,-500.0,0.00010958,2]
[333243902,1721974240884,-500.0,0.00010958,2]
[333243903,1721974240894,-500.0,0.00010958,2]
[333243904,1721974240904,-500.0,0.00010958,2]
[333243905,1721974240913,-500.0,0.00010958,2]
[333243906,1721974240923,-500.0,0.00010958,2]
[333243907,1721974240933,-500.0,0.00010958,2]
[333243908,1721974240942,-500.0,0.00010958,2]
[333243909,1721974240951,-500.0,0.00010958,2]
[333243910,1721974240961,-500.0,0.00010958,2]
[333243911,1721974240970,-287.69984447,0.00010958,2]
[333243912,1721974240980,-500.0,0.00010958,2]
[333243913,1721974240990,-500.0,0.00010958,2]
[333243914,1721974241000,-500.0,0.00010958,2]
[333243915,1721974241010,-500.0,0.00010958,2]
[333243916,1721974241020,-500.0,0.00010958,2]
[333243917,1721974241029,-500.0,0.00010958,2]
[333243918,1721974241039,-500.0,0.00010958,2]
[333243919,1721974241049,-500.0,0.00010958,2]
[333243920,1721974241058,-500.0,0.00010958,2]
[333243921,1721974241068,-500.0,0.00010958,2]
[333243922,1721974241077,-500.0,0.00010958,2]
[333243923,1721974241087,-500.0,0.00010958,2]
[333243924,1721974241096,-500.0,0.00010958,2]
[333243925,1721974241106,-500.0,0.00010958,2]
[333243926,1721974241115,-500.0,0.00010958,2]
[333243927,1721974241125,-500.0,0.00010958,2]
[333243928,1721974241134,-500.0,0.00010958,2]
[333243929,1721974241144,-500.0,0.00010958,2]
[333243930,1721974241154,-500.0,0.00010958,2]
[333243931,1721974241164,-500.0,0.00010958,2]
[333243932,1721974241173,-500.0,0.00010958,2]
[333243933,1721974241183,-200.0,0.00010959,2]
[333243934,1721974241192,-250.0,0.00010959,2]
[333243935,1721974241204,-175.73,0.00010959,2]
[333243936,1721974241214,-500.0,0.00010989,2]
[333243937,1721974241223,-504.15799623,0.00010989,2]
[333243938,1721974241232,-500.0,0.00010989,2]
[333243939,1721974241243,-500.0,0.00010989,2]
[333243940,1721974241252,-500.0,0.00010989,2]
[333243941,1721974241262,-500.0,0.00010989,2]
[333243942,1721974241272,-509.09232865,0.00010989,2]
[333243943,1721974241283,-300.0,0.00010989,2]
[333243944,1721974241292,-500.0,0.00010989,2]
[333243945,1721974241302,-514.54658042,0.00010989,2]
[333243946,1721974241312,-500.0,0.00010989,2]
[333243947,1721974241322,-500.0,0.00010989,2]
[333243948,1721974241332,-500.0,0.00010989,2]
[333243949,1721974241342,-500.0,0.00010989,2]
[333243950,1721974241351,-500.0,0.00010989,2]
[333243951,1721974241360,-500.0,0.00010989,2]
[333243952,1721974241370,-500.0,0.00010989,2]
[333243953,1721974241381,-500.0,0.00010989,2]
[333243954,1721974241391,-500.0,0.00010989,2]
[333243955,1721974241401,-404.69954375,0.00010989,2]
[333243956,1721974241418,-95.30045625,0.00010989,2]
[333243957,1721974241427,-500.0,0.00010989,2]
[333243958,1721974241437,-500.0,0.00010989,2]
[333243959,1721974241446,-500.0,0.00010989,2]
[333243960,1721974241455,-500.0,0.00010989,2]
[333243961,1721974241465,-513.2000636,0.00010989,2]
[333243962,1721974241474,-500.0,0.00010989,2]
[333243963,1721974241483,-500.0,0.00010989,2]
[333243964,1721974241492,-500.0,0.00010989,2]
[333243965,1721974241502,-500.0,0.00010989,2]
[333243966,1721974241511,-576.75,0.00010989,2]
[333243967,1721974241521,-500.0,0.00010989,2]
[333243968,1721974241531,-500.0,0.00010989,2]
[333243969,1721974241540,-500.0,0.00010989,2]
[333243970,1721974241550,-300.0,0.00010989,2]
[333243971,1721974241559,-500.0,0.00010989,2]
[333243972,1721974241569,-46.32109549,0.00010989,2]
[333243973,1721974241586,-455.86717847,0.00010989,2]
[333243974,1721974241595,-500.0,0.00010989,2]
[333243975,1721974241605,-500.0,0.00010989,2]
[333243976,1721974241614,-500.0,0.00010989,2]
[333243977,1721974241624,-500.0,0.00010989,2]
[333243978,1721974241634,-500.0,0.00010989,2]
[333243979,1721974241645,-500.0,0.00010989,2]
[333243980,1721974241657,-500.0,0.00010989,2]
[333243981,1721974241666,-366.09874382,0.00010989,2]
[333243982,1721974241678,-500.0,0.00010989,2]
[333243983,1721974241687,-500.0,0.00010989,2]
[333243984,1721974241697,-500.0,0.00010989,2]
[333243985,1721974241706,-500.0,0.00010989,2]
[333243986,1721974241715,-500.0,0.00010989,2]
[333243987,1721974241725,-500.0,0.00010989,2]
[333243988,1721974241734,-500.0,0.00010989,2]
[333243989,1721974241744,-500.0,0.00010989,2]
[333243990,1721974241753,-500.0,0.00010989,2]
[333243991,1721974241764,-500.0,0.00010989,2]
[333243992,1721974241773,-500.0,0.00010989,2]
[333243993,1721974241783,-4348.94,0.00010989,2]
[333243994,1721974241792,-500.0,0.00010989,2]
[333243995,1721974241802,-245.47924665,0.00010989,2]
[333243996,1721974241812,-586.51524277,0.00010989,2]
[333243997,1721974241822,-500.0,0.00010989,2]
[333243998,1721974241832,-471.54945411,0.00010989,2]
[333243999,1721974241842,-500.0,0.00010989,2]
[333244000,1721974241851,-500.0,0.00010989,2]
[333244001,1721974241861,-55.40163206,0.00010989,2]
[333244002,1721974241875,-444.59836794,0.00010989,2]
[333244003,1721974241887,-324.73425502,0.00010989,2]
[333244004,1721974241900,-175.26574498,0.00010989,2]
[333244005,1721974241909,-500.0,0.00010989,2]
[333244006,1721974241919,-232.39083139,0.00010989,2]
[333244007,1721974241930,-267.60916861,0.00010989,2]
[333244008,1721974241941,-337.80621918,0.00010989,2]
[333244009,1721974241950,-500.0,0.00010989,2]
[333244010,1721974241960,-354.91101197,0.00010989,2]
[333244032,1721974242683,-145.08898803,0.00010989,2]
[333244034,1721974242692,-500.0,0.00010989,2]
[333244035,1721974242702,-500.0,0.00010989,2]
[333244036,1721974242711,-500.0,0.00010989,2]
[333244037,1721974242721,-500.0,0.00010989,2]
[333244038,1721974242730,-500.0,0.00010989,2]
[333244039,1721974242739,-500.0,0.00010989,2]
[333244040,1721974242748,-500.0,0.00010989,2]
[333244041,1721974242758,-503.40157877,0.00010989,2]
[333244042,1721974242767,-500.0,0.00010989,2]
[333244043,1721974242776,-500.0,0.00010997,2]
[333244044,1721974242786,-500.0,0.00010997,2]
[333244045,1721974242795,-500.0,0.00010997,2]